{"text_format":"2","workbook":"xlsx","n_sheets":1,"sheets":["BoQ"],"not_rendered":{"charts":0,"images":0,"macros":0,"external_links":0,"defined_names":1,"comments":0,"pivot_tables":0},"unopened":[],"bounds":{"document_bytes":16777216,"sheet_cells":100000,"run_cost":"one","rows_first":2000,"rows_last":500,"rows_between":2000,"halvings":0,"cell_chars":16384,"cell_head_chars":4096},"cells_cut":0,"cells_raw":0,"read":"whole","date_system":"1900"}

{"sheet":"BoQ","index":0,"n_rows":336,"n_cols":6,"rows_kept":336,"cut":false,"hidden":false,"merged":[[316,1,316,4],[323,6,323,9],[308,1,308,4],[13,0,13,5],[14,0,14,5],[133,0,137,0],[139,0,154,0],[139,2,154,2],[139,3,154,3],[139,4,154,4],[155,0,160,0],[169,0,174,0],[178,0,191,0],[178,2,191,2],[178,3,191,3],[139,5,154,5],[241,2,247,2],[241,5,247,5],[221,4,225,4],[221,5,225,5],[231,4,236,4],[231,3,236,3],[231,5,236,5],[231,2,236,2],[270,0,300,0],[270,2,300,2],[270,3,300,3],[270,4,300,4],[270,5,300,5],[231,0,236,0],[241,0,247,0],[250,0,266,0],[250,2,266,2],[250,3,266,3],[250,4,266,4],[241,3,247,3],[241,4,247,4],[321,4,321,5],[322,4,322,5],[318,1,318,3],[319,1,319,3],[320,1,320,3],[322,1,322,3],[318,4,318,5],[319,4,319,5],[116,4,132,4],[116,5,132,5],[320,4,320,5],[321,1,321,3],[178,4,191,4],[178,5,191,5],[211,3,215,3],[211,2,215,2],[211,4,215,4],[211,5,215,5],[205,0,205,5],[211,0,215,0],[221,2,225,2],[221,3,225,3],[203,1,203,4],[221,0,225,0],[93,0,109,0],[93,2,109,2],[93,3,109,3],[93,4,109,4],[93,5,109,5],[92,1,92,2],[110,0,114,0],[116,0,132,0],[116,2,132,2],[116,3,132,3],[10,0,10,5],[11,0,11,5],[12,0,12,5],[15,0,15,5],[70,0,84,0],[70,2,84,2],[70,3,84,3],[38,1,38,4],[85,0,91,0],[309,0,309,6],[1,0,3,5],[4,0,5,5],[7,0,7,5],[8,0,8,5],[9,0,9,5],[6,0,6,5],[141,7,141,8],[291,6,291,7],[250,5,266,5],[19,0,29,0],[19,2,29,2],[19,3,29,3],[19,4,29,4],[19,5,29,5],[40,0,40,5],[43,0,59,0],[43,2,59,2],[43,3,59,3],[43,4,59,4],[43,5,59,5],[60,0,66,0],[70,4,84,4],[70,5,84,5]]}
[]
["Bill of Quantity"]
[]
[]
["Rehabilitation of Central  Water Treatment Plant in Tikrit  (3250m3/hr.) "]
[]
["General Specification & Notes"]
["1-  All the materials supplied by the contractor must be according to Iraq's standard Specifications"]
["2-  The contractor must provide samples , catalogues and specification of materials for testing and approval by the site engineer "]
["3-  Contractor must pay the cost for samples including any laboratory tests, both inside and outside the country as required "]
["4- The price of works includes all job requirements as per Iraq's standard specification."]
["5- The contractor must provide PPE (Personal Protective Equipment) for all labors, personnel, engineers and possible visitors to the site"]
["6-All the works must be done according to the site engineer instructions & all required works to complete job should be included within the price \n"]
["7- The contractor is responsible for repairing any damaged occurred during his works."]
["8- The contractor must apply measures safety and COVID-19."]
["Civil works"]
["#","Item","Unit","Quantity","Price $","Total $"]
["A","Filters Rehabilitation"]
[1,"Filters Clean Up                                                                                 Supply materials, tools and manpower to remove all the existing filters media (all gravels and sand layers No. 8 filters ) since  each filter is ( 6*5 )m and cleaning all pipes then transmit all the old media and leftover in an adequate dump as indicated by the municipality. as directed of supervisor engineer.\n                                                                                                    ","L.S.",1,null,{"$f":"(E19*D19)","v":0}]
[2," Media Filters                                                                                       Supply material, tools and manpower  to lay new  media filter (No. 8 filter) according to (DoW) specification, (The contractor should provide test certificate from supplier showing the grade and sieve numbers of media). The price shall include all required materials, labor, and accessories to implement the work properly and functionally.  according to following details: ","m3",380,null,{"$f":"D20*E20","v":0}]
[null,"effective size 0.6-0.65  "]
[null,"Uniformity factor 1.35-1.5"]
[null,"300 mm depth sand 0.6-1 m"]
[null,"Effective size 1.1-1.2   "]
[null,"300 mm depth sand 1-2 mm"]
[null,"150 mm depth gravel 6.5-2.5 mm"]
[null,"150 mm depth gravel 6.5-9.5 mm"]
[null,"150 mm depth gravel 13.5-9.5 mm"]
[null,"100 mm depth gravel 38-13.5 mm"]
[null,"100 mm depth gravel 50-38 mm"]
["B","Roof works"]
[3," Roof & Expansion Joints Maintenance\nSupply materials, tools, and manpower to maintain the roof  tiles by removing the old mastic and re-filling the joints with new and replacing any damaged tile by another new. The work includes treating the expansion joints of building wherever existed  by cleaning and adding new elastopolymers materials that approved by engineer to complete the works as standards.","m2",2100,null,{"$f":"D32*E32","v":0}]
[4,"High-Rib Mesh Works\nSupply material, tools, manpower to cover the internal  walls and ceiling for the existed sandwich panel room that related to the changeover switch high voltage. The work includes using High-rib mesh of cement 4 cm thickness  approved by the supervising engineer. The work includes expanding and shifting one side  of the room by a distance of 1 meter and complete all requirements of sandwich panel to achieve the new dimensions according to engineer instruction.","m2",80,null,{"$f":"D33*E33","v":0}]
[5,"Excavation & Filling around Water Pipe\nSupply materials, tools, manpower for excavation around existed pipe dimeter 8 in. The work includes removing materials about 30 cm thickness  around pipe and clean that pipe, then treating any leakage wherever is needed and covering the pipe by coating bituminous and laying and filling by suitable soil according to engineer instruction.","M.L",25,null,{"$f":"D34*E34","v":0}]
["C ","Roads Rehabilitation"]
[6,"Treatment of Settlement\nSupply materials, tools and manpower for demolishing and removing the damaged concrete slab of road that has settled because of soil gypsum solubility in subgrade of road in which be determined by supervisor engineer. The settlement areas must be treated by using sub-base materials layers every 25 cm with good compaction 95 % min. to reach the suitable level, then recasting slab concrete with compressive strength 25 Mpa and using BRC 63 mm, then, casting of concrete up to  level of old concrete  surface with joints wherever needed according to engineer instruction.","m2",250,null,{"$f":"D36*E36","v":0}]
[7,"Asphalt Pavement \nSupply materials, tools and manpower for paving by asphalt surface layer 6 cm thickness over the existed  concrete road. The work includes cleaning and treating the joints of old concrete road by mastic materials and spray tack coat bituminous material with all the required of leveling works to complete the Job as standards.","m2",400,null,{"$f":"(E37*D37)","v":0}]
[8,"Replacing Chequered Plate\nSupply materials , tools and manpower to  install new chequered plate 6 mm thickness by  1.2 m width with its bearing  structure. the work includes replace the old angles below the plates and replace them with new angles size 2inch thickness 4mm(for) along sides of the plates (fixed by roll bolts into the walls), and install new horizontal steel purlins(angle size 2inch with thickness 4mm each 80 cm in short span beside Longitudinal edges . The work includes all requirement to achieve a good job. ","M.L",120,null,{"$f":"D38*E38","v":0}]
[null,"Amount of civil works ",null,null,null,{"$f":"SUM(F19:F38)","v":0}]
[]
["Mechanical Work"]
["#","Item","Unit","Quantity","Price $","Total $"]
["A","Low Lift Pump Station Works for Stage One"]
[1,"Low lift pumps works\nSupply materials, tools and manpower to dismantle old damaged set of  pumps,  then, supply , install ,test and commissioning  new set  low lift pumps,  ,the pump and electrical motor according to the following specification:-  \n","No.",1,null,{"$f":"D44*E44","v":0}]
[null,"Type : centrifugal pumps , ,horizontal,   split case"]
[null,"Brand: Ideal, Caprari, Calpeda, or equivalent (with the final approval of the end-user)"]
[null,"Capacity : 600 m3/hr."]
[null,"Head :        60 m"]
[null,"Casing : cast iron "]
[null,"Impeller :  stainless steel "]
[null,"Shaft : stainless steel "]
[null,"R.P.M : 1450 rpm "]
[null,"Voltage and frequency : 400 v / 50 Hz             "]
[null,"Insulation : class F "]
[null,"Pressure switch for monitoring"]
[null,"Power motor :   160 kw"]
[null,"Motor starting driving system  : soft star "]
[null,"Operation : 24 hr."]
[null,"Efficiency : 85%"]
[null,"Enclosure : IP 54"]
[2,"Fitting Works\nSupply , install ,test and commissioning  new fitting for suction and discharge  of low lift  pumps which includes  the following items :-         \n"]
[null,"Butterfly valves 400 mm , PN 16 flanged double eccentric","No.",1,null,{"$f":"D62*E62","v":0}]
[null,"Butterfly valves 350 mm , PN 16 flanged double eccentric","No.",1,null,{"$f":"D63*E63","v":0}]
[null,"Check valve 350 mm","No.",1,null,0]
[null,"Flexible pipe 350 mm","No.",1,null,0]
[null,"Reducer","No.",1,null,0]
[null,"Pressure gauges for suction and delivery 0-10 bar","No.",2,null,0]
["B","Intake pipe - Stage One "]
[3,"Ductile Pipe Repairing\nSupply materials, tools and manpower to maintain suction ductile pipe dia. 400 mm for pump No. 4 , the work includes complete all connect works & fill the pipe by suitable matters.","M.L",30,null,{"$f":"D69*E69","v":0}]
["C","High Lift Pump Station of Stage one"]
[4,"High Lift Pumps works\nSupply materials, tools and manpower to dismantle old damaged set of pumps, then, supply , install ,test and commissioning  new set high lift pump,  ,the pump and electrical motor according to the following specification:-  \n","No.",2,null,{"$f":"D71*E71","v":0}]
[null,"Type : centrifugal pumps, horizontal, split case."]
[null,"Brand: Ideal, Caprari, Calpeda, or equivalent  (with the final approval of the end-user)"]
[null,"Capacity : 600 m3/hr."]
[null,"Head :        90 m"]
[null,"Impeller : bronze "]
[null,"Shaft : stainless steel "]
[null,"Voltage and frequency :      400 v / 50 Hz             "]
[null,"Insulation : class F "]
[null,"Enclosure : IP 54"]
[null,"pressure switch for monitoring"]
[null,"Power motor : 315kw"]
[null,"Motor starting driving system  : soft star "]
[null,"Operation : 24 hr."]
[null,"Efficiency : 85%"]
[5,"Fitting Works\nSupply , install ,test and commissioning  new fitting for suction and discharge  for low lift  pumps includes e the following items :-         \n"]
[null,"Butterfly valves 400 mm , PN 16 flanged double eccentric","No.",1,null,{"$f":"D87*E87","v":0}]
[null,"Butterfly valves 350 mm , PN 16 flanged double eccentric","No.",1,null,{"$f":"D88*E88","v":0}]
[null,"Check valve 350 mm","No.",1,null,0]
[null,"Flexible pipe 350 mm","No.",1,null,0]
[null,"Reducer","No.",1,null,0]
[null,"Pressure gauges for suction and delivery 0-10 bar","No.",2,null,0]
["D","low lift Pump Station of Stage Two"]
[6,"Low Lift Pump works\nSupply materials, tools and manpower to dismantle old damaged set of pumps , then, supply , install ,test and commissioning new set low high lift pumps ,the pump and electrical motor according to the following specification:-  \n","No.",1,null,{"$f":"D94*E94","v":0}]
[null,"Type : centrifugal pumps, horizontal, split case,"]
[null,"Brand: Ideal, Caprari, Calpeda, or equivalent (with the final approval of the end-user)"]
[null,"Capacity : 1250 m3/hr."]
[null,"Head : 60 m"]
[null,"Casing : cast iron "]
[null,"Impeller :  stainless steel "]
[null,"Shaft : stainless steel "]
[null,"R.P.M : 1450 rpm "]
[null,"Voltage and frequency : 400 v / 50 Hz             "]
[null,"Insulation : class F "]
[null,"Pressure switch for monitoring"]
[null,"Power motor :   315 kw"]
[null,"Motor starting driving system  : soft star "]
[null,"Operation : 24 hr."]
[null,"Efficiency : 85%"]
[null,"Enclosure : IP 54"]
[7,"Fitting works\nSupply , install ,test and commissioning  new fitting for supply and discharge  for low lift  pumps includes e the following items :-    "]
[null,"Butterfly valves 500 mm , PN 16 flanged double eccentric","No.",1,null,{"$f":"D112*E112","v":0}]
[null,"Flexible pipe 400 mm","No.",1,null,{"$f":"D113*E113","v":0}]
[null,"Reducer","No.",1,null,0]
[null,"Pressure gauges for suction and delivery 0-10 bar","No.",2,null,0]
["E","low lift pump Station of stage Two"]
[8,"Low Lift Pump works\nSupply materials, tools and manpower to dismantle old damaged set of pumps, then, supply , install ,test and commissioning  new set low lift pumps ,the pump and electrical motor according to the following specification:-  \n","No.",1,null,{"$f":"D117*E117","v":0}]
[null,"Type : centrifugal pumps, horizontal, split case"]
[null,"Brand: Ideal, Caprari, Calpeda, or equivalent (with the final approval of the end-user)"]
[null,"Capacity : 600 m3/hr."]
[null,"Head : 60 m"]
[null,"Casing : cast iron "]
[null,"Impeller :  stainless steel "]
[null,"Shaft : stainless steel "]
[null,"R.P.M : 1450 rpm "]
[null,"Voltage and frequency : 400 v / 50 Hz             "]
[null,"Insulation : class F "]
[null,"Pressure switch for monitoring"]
[null,"Power motor :   160 kw"]
[null,"Motor starting driving system  : soft star "]
[null,"Operation : 24 hr."]
[null,"Efficiency : 85%"]
[null,"Enclosure : IP 54"]
[9,"Fitting Works\nSupply , install ,test and commissioning  new fitting for supply and discharge  for low lift  pumps includes the following items :-         \n "]
[null,"Butterfly valves 500 mm , PN 16 flanged double eccentric","No.",1,null,{"$f":"D135*E135","v":0}]
[null,"Flexible pipe 350 mm","No.",1,null,{"$f":"D136*E136","v":0}]
[null,"Reducer","No.",1,null,0]
[null,"Pressure gauges for suction and delivery 0-10 bar","No.",2,null,0]
["F","High lift pump Station of Stage Two"]
[10,"High lift pump works\nSupply materials, tools and manpower to dismantle old damaged set of pumps, then, supply , install ,test and commissioning  new set high lift pumps, the pump and electrical motor according to the following specification:-  \n","No.",2,null,{"$f":"D140*E140","v":0}]
[null,"Type : centrifugal pumps, horizontal, split case"]
[null,"Brand: Ideal, Caprari, Calpeda, or equivalent (with the final approval of the end-user)"]
[null,"Capacity : 1000 m3/hr."]
[null,"Head :        90 m"]
[null,"Impeller : bronze "]
[null,"Shaft : stainless steel "]
[null,"R.P.M : 1450 rpm "]
[null,"Voltage and frequency :      400 v / 50 Hz             "]
[null,"Insulation : class F "]
[null,"Enclosure : IP 54"]
[null,"Pressure switch for monitoring"]
[null,"Power motor :   400 kw"]
[null,"Motor starting driving system  : soft star "]
[null,"Operation : 24 hr."]
[null,"Efficiency : 85%"]
[11,"Fitting works  \nSupply , install ,test and commissioning  new fitting for suction and discharge  for low lift  pumps includes the following items :-         "]
[null,"Butterfly valves 400 mm , PN 16 flanged double eccentric","No.",2,null,{"$f":"D157*E157","v":0}]
[null,"Check valve 400 mm","No.",1,null,{"$f":"D158*E158","v":0}]
[null,"Flexible pipe 400 mm","No.",1,null,0]
[null,"Reducer","No.",1,null,0]
[null,"Pressure gauges for suction and delivery 0-10 bar","No.",2,null,0]
["G","Sensors systems"]
[12,"level sensor works\n Supply materials, tools and manpower to install, connect, test and commissioning level sensor for clear water storage tank (stage 1 & 2) ,this sensor must be connect to (GST.M.P) board in four level. the work includes install sound alarm for each level.","No.",2,null,0]
[13,"leakage sensor work\nSupply materials and equipment  to install sensors of leaked chlorine gas  with alarms set in places determined  by the supervising engineer with all requirement works to complete this system.","No.",1,null,0]
["H","Cooling System"]
[17,"Split Units Work\nSupply ,install ,connect , test & commissioning split unit type floor stand with capacity  5 RT(  in high lift pump building (stage & 2) and central control panels building , the work include all accessories and fitting to operation this systems ","No.",2,null,0]
["I","Electrical Gantry Crane "]
[16,"Cranes Works\nSupply ,install and operate electrical gantry crane with 4 motions &  capacity 2 Ton , the work includes  all mechanical, electrical  & welding works in order to operate this crane at best conditions.  \n","No.",2,null,0]
["J","Filters Valves  of Stage Two"]
[17,"Valves Works\nSupply materials, tools and manpower to replace electrical motor , gear box and butterfly valves flanged double eccentric PN 16  ,the work includes any required  modifications to ensure this system work at best conditions according to the following details:-"]
[null," a-Water control valve 600 mm from sedimentation tanks to filters with shaft St. steel 316        \n                                    ","No.",8,null,{"$f":"D171*E171","v":0}]
[null,"b-Water control valve 500 mm from  filters to clear water storage  tank with shaft St. steel 316        \n                                    ","No.",8,null,{"$f":"D172*E172","v":0}]
[null,"c-Backwash valve 400 mm","No.",8,null,0]
[null,"d-Accumulative tank valve 350 mm","No.",8,null,0]
[null,"e-Air control valve from compressor to filters 200 mm","No.",8,null,0]
[18,"Valves Control Panel\nSupply materials, tools and manpower to maintain the control panel for electrical valves of filters , the work includes replacing all damaged parts ( contactor , circuit breaker, signal lights ,push -bottom and wires. \n","No.",8,null,0]
["K","Sedimentation Tanks of Stage Two"]
[19,"Maintenance of Scraper works\nSupply materials, tools and manpower to maintain and repair sludge scraper mechanism for sedimentation tanks, the work includes replacing all damaged parts and operation this system at best condition. ","No.",2,null,0]
[20,"Slow Mixer works\nsupply , install, connect, operate, test and commissioning slow mixing mixer for sedimentation tank according to the following specification ","No.",2,null,0]
[null,"Type motor /standard : VDE/IEC"]
[null,"Speed : 1450 rpm "]
[null,"Electrical supply : 380v /3ph/50Hz"]
[null,"Protection : IP 55"]
[null,"Insulation class :  F"]
[null,"temperature : 55 "]
[null,"Method of starting : star-delta  from the control panel"]
[null,"Speed with gearbox : 15 - 25rpm"]
[null,"paddle wheel contains 12 paddles (diameter(1.4m), paddle dimension {long (1.5 m),wide(0.15m)}"]
[null,"  paddle material :U- Channel  hot dip galvanized steel or Aluminum U Channel or Stainless Steel. Thickness:6mm"]
[null,"Shaft   material : 316 stainless steel "]
[null," cable power from motor to starter panel   \n (Single Core Circular , Copper Conductors flexible ,pvc  Insulated, PVC Sheathed  According   to IEC 60502/1 and BS6007 or BS6500.Current rating based on VDE 0298) "]
[null,"  Power starter panel :                                                       *All connections for electrical parts must be bus bar, voltmeter , ampere meter ,mccb,contacter, timer, overload, phase faller punch ,electrical parts with standard code IEC/EN60 947, VDE0660.. and cable power(Single Core Circular , Copper Conductors flexible ,pvc  Insulated, PVC Sheathed  According   to IEC 60502/1 and BS6007 or BS6500.Current rating based on VDE 0298) from motor to starter panel etc. .     *control panels made from steel plate thickness  ( 2mm) double door and IP56 invariantly work not less than 55 C  according to stander code  IEC 947, VDE 0660  "]
["L","UPVC Pipes Works"]
[21,"Alum Network\nSupply material , tools and manpower to install UPVC pipe 16 bar and 2 inch Dia. to dosing the liquid alum from alum room to sedimentation tanks  stage1 & 2 with all fitting and valves ,the work includes casting concrete for  base  (15 cm width &  10 cm thickness) along root of the pipe.","M.L",400,null,{"$f":"D194*E194","v":0}]
[22,"Chlorine Network\nSupply material , tools and manpower to install UPVC pipe 16 bar and 2 inch for dosing the chlorine gas  from pump room of chlorine to the sedimentation  tanks  stage / 1&2 ( primary chlorination) with all fitting and valves ,the work includes casting concrete for base (15 cm width & 10 cm thickness) along root of the pipe.","M.L",400,null,{"$f":"D195*E195","v":0}]
["M"," Header Pipe in Low Station of Stage Two "]
[23,"Ductile Pipe Work\nsupply materials ,tools and manpower to replace header ductile pipe class K9 with dia. 500 mm  for low lift pumps ,the work includes supply all accessories, testing  and operating this pipe.   ","M.L",6,null,{"$f":"D197*E197","v":0}]
["N","Backwash Pumps"]
[24,"Pumps Maintenance Works\nsupply materials , tools and manpower to maintenance and rehabilitation backwash pumps for filters stage 1 & 2,suctin and delivery valves, check valves and flexible pipes     ","No.",3,null,{"$f":"D199*E199","v":0}]
["O","leakage Treatment"]
[25,"submersible pump work\nSupply , install , connect ,test and commissioning  submersible pump to lift the leakage of water from ( low & high lift pump buildings at stage 1&2) to outside according to the following specifications:- \n Flowrate = 2 m3/hr.\n Head = 40 m.\n The work included supply and install control panel, electrical float valve and all necessary pipes to complete a good job.","No.",4,null,{"$f":"D201*E201","v":0}]
["P","Wall Exhaust Fans"]
[26,"Exhaust Fan Works\nsupply, install, connect , test and commissioning wall exhaust fan(60*60) cm ,1500 m3/hr. , 230 v ,50 Hz with suitable frame and all electrical wires size  2.5 m2  for Low Lift pump Stage One & Two.","No.",10,null,{"$f":"D203*E203","v":0}]
[null,"Amount of mechanical  work ",null,null,null,{"$f":"SUM(F44:F203)","v":0}]
[]
["Electrical Work"]
["A","Low lift pump of Stage one "]
[null,"Item","Unit","Quantity","Price $","Total $"]
[1," Cables works \nSupply ,install, connect & test cable  (1*240) mm2 from main board  to operation board of pump, then,  electrical motor pump according to the following \n specifications :- \n Single Core Circular \nCopper Conductors flexible \nPVC  Insulated, PVC Sheathed  According   to IEC 60502/1 and BS6007 or BS6500.\nCurrent rating based on VDE 0298","M.L",120,null,{"$f":"D209*E209","v":0}]
[2,"Control Panel Maintenance\nSupply materials , tools and manpower to maintain, test and operate control panel for operation of pumps , the work include replace all indicator lights , push-bottom, ammeters and voltmeter gages, check and replace any damaged terminals, clean bus bars ... etc..","No.",1,null,{"$f":"D210*E210","v":0}]
["B","L.V. Distribution System for transformer "]
[3,"Low voltage distribution board Works\nSupply, install, connect ,teat and commissioning low voltage distribution board for transformer , the board must be comply one of there  codes       (BS 5486: PART 1,  (IEC-439-1)   , (VDE-0660) or (VDE-0659) & consist the following component connected by Copper bus bars :-                       \n","No.",1,null,{"$f":"D212*E212","v":0}]
[null,"a-Magnetic and Thermal Circuit breaker -4 pole with specification (MCCB 800 A -S.S.C= 70 KA matching to code IEC/EN60 947) ( No. 1)"]
[null,"b-Digital multimeter to read (A -V-Hz) (No. 1)"]
[null,"\nc-Signal lamp for every phase   ( No.4)"]
[null,"\nd-Electrical meter matching to Salah -Adeen electrical Directorate (No. 1)"]
[4,"Cable Works                                               \nSupply , connect , test and commissioning cable (1*300) mm2 between main circuit of transformer and main circuit of low lift pumps according to the following specification :- \nSingle Core Circular , Copper Conductors flexible ,PVC  Insulated, PVC Sheathed  According   to IEC 60502/1 and BS6007 or BS6500.Current rating based on VDE 0298","M.L",125,null,{"$f":"D217*E217","v":0}]
["C","High Lift Pump Station of Stage One "]
[5," Cable Works\nSupply ,install, connect & test cable  (1*240) mm2 from main board to operation board, then,  electrical motor   according to the following specification  :-   \nSingle Core Circular , Copper Conductors    \n flexible ,PVC  Insulated, PVC Sheathed  According   to IEC 60502/1 and BS6007 or BS6500.Current rating based on VDE 0298","M.L",205,null,{"$f":"D219*E219","v":0}]
[6,"Cable Tray Works\nSupply materials , tools and manpower to replace cable tray (width =70cm) for high lift pumps  according to technical specification  ","M.L",120,null,{"$f":"D220*E220","v":0}]
["E","Main Control Panel  "]
[7," Panel Maintenance Works\nSupply materials , tools and manpower to maintenance main control panel for stage / 1 by re-establishing all wires. the work include supply , install , connect ,test and commissioning  the following component:-  ","No.",1,null,0]
[null,"a-Magnetic and Thermal Circuit breaker -4 pole with specification (MCCB 800 A -S.S.C= 70 KA matching to code IEC/EN60 947) ( No. 1)"]
[null,"b-Magnetic and Thermal Circuit breaker -4 pole with specification (MCCB 400 A -S.S.C= 70 KA matching to code IEC/EN60 947) (No. 3)"]
[null," c-Digital multimeter to read (A -V-Hz) (No. 5)"]
[null,"d-Signal lamp for every phase   (No. 12)"]
["F"," Low Lift Pump Station of stage Two"]
[8,"Cable Works ( 1*300) mm2                                              \nSupply ,install, connect & test cable  (1*300) mm2 from main control panel to operation board to electrical motor according to the main following specification :-  \n Single Core Circular , Copper Conductors flexible ,PVC  Insulated, PVC Sheathed  According   to IEC 60502/1 and BS6007 or BS6500.Current rating based on VDE 0298 \n","M.L",200,null,{"$f":"D228*E228","v":0}]
[9,"Cable Works ( 1* 240) mm2 \nSupply ,install, connect & test cable  (1*240) mm2 from operation board to electrical motor according to the following specification :-  \n Single Core Circular , Copper Conductors flexible ,PVC  Insulated, PVC Sheathed  According   to IEC 60502/1 and BS6007 or BS6500.Current rating based on VDE 0298 \n        \n","M.L",150,null,{"$f":"D229*E229","v":0}]
["G","Control Panel  Maintenance "]
[10," Sub- Operation Control Panel Works\nSupply materials , tools and manpower to maintenance, test and sub- main  control panel for operate of pumps , the work include replace all indicator lights , push-bottom, ammeters and voltmeter gages, check and replace any damaged terminals, clean bus bars ... etc..","No.",1,null,{"$f":"D231*E231","v":0}]
[11," Main Control Panel Works\nSupply materials , tools and manpower to maintenance sub-main control panel for low lift pumps by  re-establishing all wires. the work include supply , install , connect ,test and commissioning  the following component:-  \n","No.",1,null,{"$f":"D232*E232","v":0}]
[null,"a-Magnetic and Thermal Circuit breaker -4 pole with specification (MCCB 1500 A -S.S.C= 70 KA matching to code IEC/EN60 947) (No. 1)"]
[null,"b-Magnetic and Thermal Circuit breaker -4 pole with specification (MCCB 630 A -S.S.C= 70 KA matching to code IEC/EN60 947) (No. 5)"]
[null,"c-Magnetic and Thermal Circuit breaker -4 pole with specification (MCCB 400 A -S.S.C= 70 KA matching to code IEC/EN60 947)(No. 1)"]
[null,"d- Digital multimeter to read (A -V-Hz)  ( No. 4)"]
[null,"e-Signal lamp for every phase  ( No. 15)"]
["H","High Lift Pump Station  of Stage two"]
[12," Cable Works (1*300) mm2\nSupply ,install, connect & test cable  (1*300) mm2 from main control panel to  operation panel for high lift pumps according to the following specification :-  \n Single Core Circular , Copper Conductors flexible ,PVC  Insulated, PVC Sheathed  According   to IEC 60502/1 and BS6007 or BS6500.Current rating based on VDE 0298 ","M.L",150,null,{"$f":"D239*E239","v":0}]
[13," Cable Works (1*240) mm2\nSupply ,install, connect & test cable  (1*240) mm2 from operation panel to electrical motor according to the following specification :-  \n Single Core Circular , Copper Conductors flexible ,PVC  Insulated, PVC Sheathed  According   to IEC 60502/1 and BS6007 or BS6500.Current rating based on VDE 0298 \n","M.L",25,null,{"$f":"D240*E240","v":0}]
["I","Control Panel  Maintenance "]
[14,"Main Control Panel Works for Low Lift Pump\nSupply materials , tools and manpower to supply all required materials and maintain main control panel for low lift pumps by  re-establishing all wires. the work included supply , install , connect ,test and commissioning  the following component:-  \n","No.",1,null,{"$f":"D242*E242","v":0}]
[null,"\na-Magnetic and Thermal Circuit breaker -4 pole with specification (MCCB 2000 A -S.S.C= 70 KA matching to code IEC/EN60 947) (No. 1)"]
[null,"b-Magnetic and Thermal Circuit breaker -4 pole with specification ACB 1000 A -S.S.C= 70 KA matching to code IEC/EN60 948) (No. 3)"]
[null,"c-Circuit breaker -4 pole with specification (MCB 100 A  matching to code IEC/EN60 947)(No. 10)"]
[null," d-Digital multimeter to read (A -V-Hz)  (No. 4)"]
[null,"e-Signal lamp for every phase   ( No. 12)"]
[null,"f-ATS 2000 A connect between low voltage  line  for high lift pumps and   low voltage  line for generator (No. 1)"]
[15,"Main Control Panel for WTP\nSupply material ,tools and manpower to maintain ,test  and operate the main control panel  of WTP,the work includes removing  all internal damaged parts  and install new parts instead of them ,as well replacing the signal wires between equipment of WTP and control panel ,meters, Signal lamp in order to  operate this panel to the fullest.      ","No.",1,null,0]
["F","Transformer 2000 KVA"]
[16," Transformer Works\nSupply , install , test and commissioning transformer 2000 KVA according to the Iraqi code (D26) and have  following specification:- ","No.",1,null,{"$f":"D251*E251","v":0}]
[null,"a-Multifunction  digital  meter  (consisting  of  Voltage,  Current,  Frequency, kWh, kVA parameter) "]
[null,"b-Reference standard     IEC 60076-1, 2,3,5,8,\nIEC 60214, IEC 60137"]
[null,"c-Ambient temperature: Maximum:   55/C\nMinimum: -10/C"]
[null,"d-Voltage Ratio                             11/0.416 KV       "]
[null,"e-Type of cooling                           ONAN"]
[null,"f-Rated power- Continuous        2000 KVA"]
[null,"g-Rated Frequency                         50Hz   +/- 5%"]
[null,"h-Connection (HT)                          Delta"]
[null,"i-Connection (LT)                          Star Neutral brought out"]
[null,"j-Vector Group                               Dyn-11"]
[null,"k-Taps    No. of taps shall be -5% to +10% with 2.5% steps."]
[null," l-Rated H.V.                                    11 KV"]
[null," m-Rated L.V                                      0.416 kV"]
[null,"n-System voltage (max.)                 12 Kv"]
[null,"o-No. of Phases                              Three"]
[null,"p-Noise level at rated voltage and frequency   50 db"]
["G","Fire Alarm System"]
[17,"Fire Alarm Works\nSupply ,install, connect , test and commissioning fire alarm   system matching the British  code 5839-1 , this system covered the building and electrical system and include the following items :- \n-Sensors connected to control system .\n-Sound alarm .\n-Central control panel consist all alarm indicator.\n-Auto fire extinguisher no./4 .\n-Any  necessary fitting to operate the system at good condition.","No.",1,null,{"$f":"D269*E269","v":0}]
["H","Change Over Switch"]
[18," Medium-voltage switchgear Works\n Supply, install, connect, test and commissioning  new (4 switchgear 12 KV that consist of two feeder 11KV incoming (Electricity northing and Electricity southing) , one feeder 11KV for generator and one feeder for outgoing to WTP  ,the cubicles include bus bar , vacuum circuit breaker, voltage transformer ,connection, earthing and current transformer, measuring instruments (voltmeter, ameter ,KWh,KVArh), the work includes supply ,install, test  and commission 110 v DC ,battery bank 40 A/h with suitable size of battery, charger and all requirement. The switchgear and main apparatus should be complied with the following standards :-","No.",4,null,{"$f":"D271*E271","v":0}]
[null,"  IEC 62271-1 for general purposes . "]
[null,"  IEC 62271-200 for the switchgear  .   "]
[null,"  IEC 62271-102 for the earthing  . "]
[null,"  IEC 62271-100 for the circuit-breakers ."]
[null,"  IEC 60071-2 for the insulation     ."]
[null,"  IEC 60470 for the contactors"]
[null,"  IEC 60265-1 for the switch-disconnectors ."]
[null,"  IEC 60529 for the degree of protection ."]
[null," Ambient temperature                       55 C"]
[null,"Rated voltage                                     12 KV  "]
[null,"Max. operating voltage                      12 KV"]
[null,"Rated peak withstand current             80kA."]
[null,"IP4X"]
[null,"Rated short-circuit duration           3s (31.5KA)."]
[null,"Incomer "]
[null,"Circuit breaker 1500 A (Vacuum or SF6 type)."]
[null,"Motor operated stored energy type 110VDC with shunt closing and opening release 110VDC."]
[null,"Auxiliary switch 12NO/12NC."]
[null,"64-pol. plug connection between withdrawable and fixed part."]
[null,"Auxiliary switch for drawer position 4NO/4NC."]
[null,"3-pole earthing switch (make proof) for cable earthing, Ith = 31,5kA/3s manually operated, mechanically locked with auxiliary switch 4NO/4NC with blocking magnet."]
[null,"Epoxy resin insulated block type current transformer 300A / 1A / 1A core 1: 1 FS 5, 5 VA core 2: 10 P 10, 5 VA Ith= 31,55kA/3s, Idyn= 80kA."]
[null,"Epoxy resin insulated block type voltage transformer with integrated HV-fuse 11kV: Ö3 / 110V: Ö3 / 110V: 3 core 1: cl. 1, 100 VA core 2: 3 P, 6A @ 1,9 x Un / 8h mounted on a withdrawable unit for cable voltage measuring"]
[null,"Rated power frequency withstand voltage     28 KV"]
[null,"Rated lightning impulse withstand voltage    75 KV"]
[null,"Power frequency  withstand voltage  28 KV"]
[null,"Rated frequency                                 50/60 HZ"]
[null,"Rated current of the bus bars               4000 A"]
[null,"Rated short-circuit breaking current of the circuit-breaker   35 KV"]
[null,"Auxiliary voltage     DC 60, 110, 120  / AC 110, 220  V"]
["I","Various  Electrical Items"]
[19,"projector LED 250 w Works\nSupply, install, connect ,test and commissioning projector LED 250 w , the work includes establishing  wires 2*2.5 mm2 inside flexible pipes and  install circuit backer 6 A in order to light the locations (high lift pump, filters ,low lift pumps and chemical) buildings.","No.",50,null,{"$f":"D303*E303","v":0}]
[20,"projector 400W Works\nSupply materials, tools and manpower  to install lighting system for filters include led projector 400 W with photo cell.","No.",12,null,{"$f":"D304*E304","v":0}]
[21,"Lighting Fixture Works\nSupply, install, connect ,test and commissioning outdoor  lighting fixture 100 W (dust proof)  inside of change over switch building , the work includes establishing  wires (2*2.5) mm2 and connecting with circuit breaker and switch , the location of this fixture is determined by supervisor engineer. ","No.",6,null,{"$f":"D305*E305","v":0}]
[22,"Sub-Main Distribution Works\nSupply, install, connect ,test and commissioning sub-main distribution in change over switch building includes circuit breaker 32 A , single phase, , the location of this board is determined by supervisor engineer.","No.",1,null,0]
[23," Lighting Poles Works\nSupply, install , connect , test and commissioning lighting poles with height 9 m and projector 1000 W , the work includes the following items :-\n-establishing wire 2*6 mm2 inside flexible pipe.\n-installing circuit breaker 16 A.\n-casting concrete base (1.2*0.6*0.6) m. ","No.",5,null,0]
[24," Photo Cell Works\nSupply, install, connect ,test and commissioning photo cell with control panel, the location of this fixture is determined  by supervisor engineer","No.",3,null,0]
[null,"Amount of electrical work ",null,null,null,{"$f":"SUM(F209:F308)","v":0}]
["Fire and Signs"]
["#","Item Description","Unit","Qty","Price $","Total $"]
[1,"Permanent signage:\nProvision of materials, tools, manpower to  install permanent signage (60cm x 40cm), printed on white aluminum composite (trade name – Dibond) to be placed in a prominent position at the main entry door of the site, at eye level. and all requirements to complete the job.","NO",1,null,{"$f":"D312*E312","v":0}]
[2,"Temporary signage:\nProvision of materials, tools, manpower to  install temporary signage (W 190cm x H 90cm) printed on mounted plastic sheeting composite (trade name – Dibond) fixed on tow steel legs (3” steel pipe diameter, 2m high) and all requirements to complete the job.","NO",1,null,{"$f":"D313*E313","v":0}]
[3,"Fire Extinguishers Weight 25 kg\nSupply and install fire extinguishers type CO2 , weight 25 kg","No.",10,null,{"$f":"D314*E314","v":0}]
[4,"Fire Extinguishers Weight 6 kg \nSupply and install fire extinguishers type CO2 , weight 6 kg","No.",20,null,{"$f":"D315*E315","v":0}]
[5,"Automatic firefighting \nSupply, install ,connect, test and commissioning automatic CO2  firefighting system with solenoid actuated pilot cylinder include extinguisher with weight 45 kg in electrical control panel room  ","No.",1,null,{"$f":"D316*E316","v":0}]
[null,"Amount of Fire and Signs work ",null,null,null,{"$f":"SUM(F312:F316)","v":0}]
[]
[null,"Amount of civil work ",null,null,{"$f":"F39","v":0}]
[null,"Amount of mechanical  work ",null,null,{"$f":"F204","v":0}]
[null,"Amount of electrical work ",null,null,{"$f":"F309","v":0}]
[null,"Amount of Fire and Signs work",null,null,{"$f":"F317","v":0}]
[null,"Total amount",null,null,{"$f":"SUM(E319:E322)","v":0}]
[]
[]
[]
[]
[null,"Name of Bidder:         ______________________________"]
[]
[null,"Authorized signature: ______________________________"]
[]
[null,"Functional Title:         ______________________________"]
[]
[null,"Company:                   ______________________________"]
[]
[null,"Date:                          ______________________________                          "]